bitfinex/quotes_ETHUSD_20210401
["timestamp","ask_amount","ask_price","bid_price","bid_amount"]
[1617244069786,21.91507554,1928.2,1928.1,13.5385845]
[1617244071613,25.46507554,1928.2,1928.1,13.5385845]
[1617244072832,23.62567554,1928.2,1928.1,13.5385845]
[1617244075460,23.62567554,1928.2,1928.1,13.1285845]
[1617244075662,21.78187554,1928.2,1928.1,13.1285845]
[1617244076862,25.33187554,1928.2,1928.1,13.1285845]
[1617244077464,25.33187554,1928.2,1928.1,5.3535645]
[1617244078084,25.33187554,1928.2,1928.1,2.0735645]
[1617244078888,23.46357554,1928.2,1928.1,2.0735645]
[1617244080708,22.48357554,1928.2,1928.1,2.0735645]
[1617244081913,20.64387554,1928.2,1928.1,2.0735645]
[1617244082114,24.19387554,1928.2,1928.1,2.0735645]
[1617244083738,23.69387554,1928.2,1928.1,2.0735645]
[1617244084953,21.82967554,1928.2,1928.1,2.0735645]
[1617244085553,21.82967554,1928.2,1928.1,9.8494045]
[1617244086786,20.82967554,1928.2,1928.1,9.8494045]
[1617244086986,20.82967554,1928.2,1928.1,12.9694045]
[1617244087187,24.37967554,1928.2,1928.1,12.9694045]
[1617244087987,22.54197554,1928.2,1928.1,12.9694045]
[1617244089793,21.54197554,1928.2,1928.1,12.9194045]
[1617244089991,21.54197554,1928.2,1928.1,13.3194045]
[1617244090191,21.54197554,1928.2,1928.1,12.9194045]
[1617244090991,19.70227554,1928.2,1928.1,12.9194045]
[1617244091415,19.70227554,1928.2,1928.1,5.1435645]
[1617244092615,23.25227554,1928.2,1928.1,5.1435645]
[1617244092814,22.25227554,1928.2,1928.1,5.1435645]
[1617244093844,20.41337554,1928.2,1928.1,5.1435645]
[1617244094845,20.35037554,1928.2,1928.1,5.1435645]
[1617244095644,20.35037554,1928.2,1928.1,5.5335645]
[1617244095846,19.85037554,1928.2,1928.1,5.5335645]
[1617244096046,19.85037554,1928.2,1928.1,13.3093045]
[1617244096871,18.00937554,1928.2,1928.1,13.3093045]
[1617244097270,18.00937554,1928.2,1928.1,5.5335645]
[1617244097872,21.55937554,1928.2,1928.1,5.1435645]
[1617244098772,21.05937554,1928.2,1928.1,5.1435645]
[1617244099999,19.21897554,1928.2,1928.1,5.1435645]
[1617244100601,19.21897554,1928.2,1928.1,5.5335645]
[1617244101399,19.21897554,1928.2,1928.1,13.3093445]
[1617244101839,18.21897554,1928.2,1928.1,12.9193445]
[1617244103043,19.92437554,1928.2,1928.1,12.9193445]
[1617244103639,19.87437554,1928.2,1928.1,12.9193445]
[1617244106044,18.03347554,1928.2,1928.1,12.9193445]
[1617244106964,17.03347554,1928.2,1928.1,12.9193445]
[1617244107966,17.03347554,1928.2,1928.1,5.1435645]
[1617244108166,20.58347554,1928.2,1928.1,5.1435645]
[1617244108968,18.74457554,1928.2,1928.1,3.12]
[1617244109169,18.74457554,1928.2,1928.0,0.20659554]
[1617244111795,17.74457554,1928.2,1928.0,0.20659554]
[1617244111996,15.90387554,1928.2,1928.0,0.20659554]
[1617244113422,19.45387554,1928.2,1928.0,0.20659554]
[1617244115042,17.61047554,1928.2,1928.0,0.20659554]
[1617244116245,17.61047554,1928.2,1928.0,7.98289554]
[1617244116844,16.61047554,1928.2,1928.0,7.98289554]
[1617244117790,16.61047554,1928.2,1928.0,0.20659554]
[1617244117987,14.77247554,1928.2,1928.0,0.20659554]
[1617244118588,18.32247554,1928.2,1928.0,0.20659554]
[1617244121192,18.32247554,1928.2,1928.0,0.60659554]
[1617244121193,16.45127554,1928.2,1928.0,0.60659554]
[1617244121993,15.99427554,1928.2,1928.0,0.20659554]
[1617244122193,7.77614,1928.1,1928.0,0.20659554]
[1617244123816,11.32614,1928.1,1928.0,0.20659554]
[1617244124216,9.48254,1928.1,1928.0,0.20659554]
[1617244124418,12.68542128,1928.1,1928.0,0.20659554]
[1617244124618,28.79142128,1928.1,1928.0,0.20659554]
[1617244124818,33.80142128,1928.1,1928.0,0.20659554]
[1617244125218,33.80142128,1928.1,1927.2,0.41]
[1617244125446,7.77891,1927.6,1927.4,0.518]
[1617244125647,15.41311,1927.6,1927.3,0.182]
[1617244127244,13.55431,1927.6,1927.3,0.182]
[1617244127445,0.133,1927.5,1927.2,0.364]
[1617244128273,0.133,1927.5,1927.2,0.754]
[1617244128471,7.77896,1927.4,1927.2,0.726]
[1617244129070,11.32896,1927.4,1927.2,0.726]
[1617244129270,11.32896,1927.4,1927.3,0.12866349]
[1617244130085,9.48966,1927.4,1927.3,0.12866349]
[1617244133100,7.64836,1927.4,1927.3,0.12866349]
[1617244134344,11.19836,1927.4,1927.3,0.12866349]
[1617244136150,9.35966,1927.4,1927.3,0.12866349]
[1617244136346,9.35966,1927.4,1927.3,0.50866349]
[1617244137148,7.1,1927.4,1927.3,0.50866349]
[1617244137348,7.1,1927.4,1927.3,0.12866349]
[1617244137948,7.1,1927.4,1927.3,0.40866349]
[1617244138149,7.1,1927.4,1927.3,0.12866349]
[1617244138774,7.1,1927.4,1927.3,0.40866349]
[1617244139172,5.2551,1927.4,1927.3,0.79866349]
[1617244139573,8.8051,1927.4,1927.3,0.79866349]
[1617244140773,8.8051,1927.4,1927.3,0.40866349]
[1617244141400,8.8051,1927.4,1927.3,14.68866349]
[1617244141598,8.8051,1927.4,1927.3,35.70340289]
[1617244141798,8.8051,1927.4,1927.3,42.60340289]
[1617244142198,6.9621,1927.4,1927.3,50.90419973]
[1617244142798,6.9621,1927.4,1927.3,55.91419973]
[1617244142999,3.55,1928.1,1927.3,57.11419973]
[1617244143199,3.55,1928.1,1928.0,0.38]
[1617244143397,3.55,1928.1,1928.0,0.66]
[1617244144027,2.55,1928.1,1928.0,7.21]
[1617244144225,2.55,1928.1,1928.0,3.54]
[1617244144826,6.1,1928.1,1928.0,6.76811194]
[1617244145229,4.2365,1928.1,1928.0,3.54]
[1617244145426,4.2365,1928.1,1928.0,6.77060014]
[1617244145625,4.2365,1928.1,1928.0,3.54]
[1617244146878,4.2365,1928.1,1928.0,3.70401755]
[1617244147677,4.2365,1928.1,1928.0,3.32401755]
[1617244147877,4.2365,1928.1,1928.0,3.04401755]
[1617244148278,2.3987,1928.1,1928.0,3.04401755]
[1617244148877,1.3987,1928.1,1928.0,3.04401755]
[1617244149078,1.3987,1928.1,1928.0,3.43401755]
[1617244149283,9.17523,1928.1,1928.0,3.43401755]
[1617244150080,12.72523,1928.1,1928.0,3.43401755]
[1617244150481,12.72523,1928.1,1928.0,3.04401755]
[1617244150884,12.72523,1928.1,1928.0,3.72401755]
[1617244150885,4.9487,1928.1,1928.0,3.72401755]
[1617244151284,3.1111,1928.1,1928.0,3.72401755]
[1617244153107,3.1111,1928.1,1928.0,6.92099301]
[1617244153305,3.1111,1928.1,1928.0,14.69562301]
[1617244153505,3.1111,1928.1,1928.0,11.49864755]
[1617244153907,3.1111,1928.1,1928.0,3.72401755]
[1617244153908,2.1111,1928.1,1928.0,3.72401755]
[1617244154107,2.1111,1928.1,1928.0,6.91502307]
[1617244154330,0.2715,1928.1,1928.0,6.91502307]
[1617244154732,0.2715,1928.1,1928.0,3.72401755]
[1617244155332,3.8215,1928.1,1928.0,3.72401755]
[1617244157154,3.8215,1928.1,1928.0,6.91745795]
[1617244157352,1.9825,1928.1,1928.0,6.91745795]
[1617244157752,1.9825,1928.1,1928.0,3.72401755]
[1617244158351,1.9825,1928.1,1928.0,9.62401755]
[1617244158955,0.9825,1928.1,1928.0,9.62401755]
[1617244160209,0.9825,1928.1,1928.0,3.72401755]
[1617244160409,3.55,1928.1,1928.0,3.71401755]
[1617244160810,3.55,1928.1,1928.0,3.04401755]
[1617244163436,1.7016,1928.1,1928.0,3.04401755]
[1617244164036,0.7016,1928.1,1928.0,3.04401755]
[1617244165637,4.2516,1928.1,1928.0,3.04401755]
[1617244166438,2.4059,1928.1,1928.0,3.04401755]
[1617244166838,22.38152554,1928.2,1928.0,3.43401755]
[1617244167447,22.38152554,1928.2,1928.0,3.71401755]
[1617244168248,22.38152554,1928.2,1928.0,3.32401755]
[1617244169050,21.38152554,1928.2,1928.0,3.32401755]
[1617244169450,19.54432554,1928.2,1928.0,3.32401755]
[1617244170076,11.76777554,1928.2,1928.0,3.32401755]
[1617244170679,14.89235156,1928.2,1928.0,3.04401755]
[1617244170879,18.44235156,1928.2,1928.0,0.16401755]
[1617244171080,15.31777554,1928.2,1928.0,0.16401755]
[1617244172281,23.09417554,1928.2,1928.0,0.16401755]
[1617244172481,21.25287554,1928.2,1928.0,0.16401755]
[1617244172702,13.47647554,1928.2,1928.0,0.16401755]
[1617244173304,13.47647554,1928.2,1928.0,0.84401755]
[1617244173903,12.47647554,1928.2,1928.0,0.44401755]
[1617244174302,12.47647554,1928.2,1928.0,8.21904755]
[1617244175333,10.63247554,1928.2,1928.0,11.23904755]
[1617244176135,14.18247554,1928.2,1928.0,11.23904755]
[1617244176736,14.18247554,1928.2,1928.0,3.46401755]
[1617244178077,14.18247554,1928.2,1928.0,3.18401755]
[1617244178474,12.33967554,1928.2,1928.0,3.18401755]
[1617244178674,12.33967554,1928.2,1928.0,3.46401755]
[1617244178874,11.33967554,1928.2,1928.0,3.46401755]
[1617244179078,11.33967554,1928.2,1928.0,3.18401755]
[1617244179278,11.33967554,1928.2,1928.0,3.46401755]
[1617244181281,22.66598554,1928.2,1928.0,3.18401755]
[1617244181479,20.82628554,1928.2,1928.0,3.18401755]
[1617244181679,20.82628554,1928.2,1928.0,0.16401755]
[1617244184002,19.82628554,1928.2,1928.0,0.16401755]
[1617244185403,19.82628554,1928.2,1928.0,0.44401755]
[1617244185831,12.04997554,1928.2,1928.0,0.16401755]
[1617244186027,12.04997554,1928.2,1928.0,0.44401755]
[1617244186429,15.59997554,1928.2,1928.0,0.44401755]
[1617244186630,15.59997554,1928.2,1928.0,0.16401755]
[1617244187630,21.53497554,1928.2,1928.0,0.16401755]
[1617244188854,21.53497554,1928.2,1928.0,0.44401755]
[1617244189055,20.53497554,1928.2,1928.0,0.16401755]
[1617244189855,21.73497554,1928.2,1928.0,0.16401755]
[1617244190157,3.06935058,1928.1,1928.0,0.16401755]
[1617244190355,5.01,1928.1,1928.0,0.16401755]
[1617244191184,12.75847554,1928.2,1928.0,0.16401755]
[1617244191380,20.53476554,1928.2,1928.0,0.16401755]
[1617244191578,24.08476554,1928.2,1928.0,0.16401755]
[1617244192777,24.46476554,1928.2,1928.0,0.16401755]
[1617244193381,25.66476554,1928.2,1928.0,0.16401755]
[1617244193625,5.01,1928.1,1928.0,0.16401755]
[1617244194423,12.7875,1928.1,1928.0,0.16401755]
[1617244195523,13.9875,1928.1,1928.0,0.16401755]
[1617244196230,14.52877757,1928.1,1928.0,0.16401755]
[1617244196827,18.07877757,1928.1,1928.0,0.16401755]
[1617244201257,4.09127757,1928.1,1928.0,0.44401755]
[1617244201488,3.55,1928.1,1928.0,0.44401755]
[1617244202086,7.1,1928.1,1928.0,0.44401755]
[1617244202685,7.1,1928.1,1928.0,6.94401755]
[1617244202686,5.2558,1928.1,1928.0,6.94401755]
[1617244202885,5.2558,1928.1,1928.0,0.16401755]
[1617244204309,5.2558,1928.1,1928.0,0.44401755]
[1617244205008,5.2558,1928.1,1928.0,0.34401755]
[1617244205609,3.4172,1928.1,1928.0,11.79401755]
[1617244205809,3.4172,1928.1,1928.0,12.19401755]
[1617244206009,3.4172,1928.1,1928.0,16.07401755]
[1617244206209,3.4172,1928.1,1928.0,23.84954755]
[1617244206410,3.4172,1928.1,1928.0,32.15034439]
[1617244206613,3.4172,1928.1,1928.0,33.31594439]
[1617244207033,2.4172,1928.1,1928.0,25.01514755]
[1617244207234,5.9672,1928.1,1928.0,25.01514755]
[1617244207432,5.9672,1928.1,1928.0,13.56514755]
[1617244208233,5.914687,1928.1,1928.0,13.56514755]
[1617244208634,4.076787,1928.1,1928.0,13.56514755]
[1617244208834,4.076787,1928.1,1928.0,23.56514755]
[1617244210668,7e-06,1928.1,1928.0,51.58514755]
[1617244210867,1.0,1928.4,1928.1,29.95643108]
[1617244211068,1.0,1928.9,1928.4,31.35]
[1617244211269,1.0,1928.9,1928.6,15.283]
[1617244211466,1.0,1928.9,1928.7,12.66091654]
[1617244211667,2.7109,1929.1,1928.8,39.14806684]
[1617244211870,2.7109,1929.1,1928.9,3.14697134]
[1617244212092,1.7109,1929.1,1928.9,3.14697134]
[1617244212291,1.7109,1929.1,1928.9,3.45497134]
[1617244213093,1.7109,1929.1,1929.0,7.77097]
[1617244213293,1.7109,1929.1,1929.0,0.38]
[1617244213494,1.6109,1929.1,1929.0,20.23]
[1617244213693,1.6109,1929.1,1929.0,32.07079684]
[1617244213893,1.6109,1929.1,1929.0,32.35079684]
[1617244214093,1.6109,1929.1,1929.0,35.0258]
[1617244214294,1.6109,1929.1,1929.0,15.1758]
[1617244214496,1.6109,1929.1,1929.0,22.94679]
[1617244214711,5.23989235,1929.2,1929.0,22.94679]
[1617244214911,5.23989235,1929.2,1929.1,7.55]
[1617244215111,5.23989235,1929.2,1929.1,12.11]
[1617244215312,5.23989235,1929.2,1929.1,12.39]
[1617244215711,5.23989235,1929.2,1929.1,12.5306517]
[1617244217117,4.23989235,1929.2,1929.1,12.5306517]
[1617244217738,5.94449235,1929.2,1929.1,5.3806517]
[1617244217939,5.94449235,1929.2,1929.1,0.5406517]
[1617244219339,5.94449235,1929.2,1929.1,0.8206517]
[1617244220575,5.94449235,1929.2,1929.1,0.4206517]
[1617244220776,4.10619235,1929.2,1929.1,0.4206517]
[1617244221578,4.10619235,1929.2,1929.1,7.7506517]
[1617244221777,4.10619235,1929.2,1929.1,3.92651792]
[1617244221977,3.10619235,1929.2,1929.1,0.8006517]
[1617244222381,3.10619235,1929.2,1929.1,0.4206517]
[1617244223013,6.65619235,1929.2,1929.1,0.4206517]
[1617244223618,6.65619235,1929.2,1929.1,0.1406517]
[1617244223813,4.81719235,1929.2,1929.1,0.1406517]
[1617244226819,2.97649235,1929.2,1929.1,0.1406517]
[1617244227020,1.97649235,1929.2,1929.1,0.1406517]
[1617244228240,5.52649235,1929.2,1929.1,0.4206517]
[1617244228442,5.52649235,1929.2,1929.1,6.1206517]
[1617244228639,5.52649235,1929.2,1929.1,10.0606517]
[1617244229040,5.52649235,1929.2,1929.1,4.3606517]
[1617244229841,3.68359235,1929.2,1929.1,4.3606517]
[1617244230245,3.68359235,1929.2,1929.1,0.4206517]
[1617244230466,3.68359235,1929.2,1929.1,0.1406517]
[1617244231870,3.68359235,1929.2,1929.1,0.4206517]
[1617244232068,2.68359235,1929.2,1929.1,0.4206517]
[1617244232873,0.83869235,1929.2,1929.1,0.4206517]
[1617244233092,0.83869235,1929.2,1929.1,0.8106517]
[1617244233491,4.38869235,1929.2,1929.1,0.1406517]
[1617244234892,4.38869235,1929.2,1929.1,0.4206517]
[1617244235291,4.38869235,1929.2,1929.1,8.1914417]
[1617244235721,2.54949235,1929.2,1929.1,8.1914417]
[1617244235921,2.54949235,1929.2,1929.1,8.5814417]
[1617244237122,1.54949235,1929.2,1929.1,8.5814417]
[1617244238563,1.54949235,1929.2,1929.1,8.1914417]
[1617244238762,3.55009235,1929.2,1929.1,0.4206517]
[1617244239565,3.55009235,1929.2,1929.1,0.3206517]
[1617244239966,3.55009235,1929.2,1929.1,8.0916517]
[1617244241768,1.41599235,1929.2,1929.1,8.0916517]
[1617244241969,0.26599235,1929.2,1929.1,8.5016517]
[1617244242769,0.26599235,1929.2,1929.1,8.0916517]
[1617244243794,0.26599235,1929.2,1929.1,0.3206517]
[1617244243995,3.81599235,1929.2,1929.1,0.3206517]
[1617244245000,1.91279235,1929.2,1929.1,8.0917417]
[1617244246243,1.91279235,1929.2,1929.1,8.4817417]
[1617244246844,1.91279235,1929.2,1929.1,8.0917417]
[1617244247045,0.91279235,1929.2,1929.1,8.0917417]
[1617244247245,0.91279235,1929.2,1929.1,8.4717417]
[1617244247443,0.91279235,1929.2,1929.1,11.3117417]
[1617244247844,0.91279235,1929.2,1929.1,10.9317417]
[1617244248045,0.06669235,1929.4,1929.1,10.9317417]
[1617244248244,0.20669235,1929.4,1929.1,10.9317417]
[1617244249050,0.20669235,1929.4,1929.1,10.9807417]
[1617244249250,3.75669235,1929.4,1929.1,10.9807417]
[1617244249450,3.75669235,1929.4,1929.2,7.7705]
[1617244249652,3.61669235,1929.4,1929.2,7.7705]
[1617244251052,1.77869235,1929.4,1929.2,7.7705]
[1617244251256,1.77869235,1929.4,1929.2,12.7105]
[1617244251493,1.77869235,1929.4,1929.2,13.21762134]
[1617244251691,1.77869235,1929.4,1929.3,2.94815249]
[1617244251894,1.77869235,1929.4,1929.3,0.28]
[1617244252091,0.77869235,1929.4,1929.3,0.28]
[1617244252691,0.77869235,1929.4,1929.3,8.05029]
[1617244253895,0.77869235,1929.4,1929.3,7.77029]
[1617244254094,9.235e-05,1929.4,1929.2,5.06712134]
[1617244254294,9.235e-05,1929.4,1929.2,0.40712134]
[1617244254494,3.55009235,1929.4,1929.2,0.40712134]
[1617244257221,0.58089235,1929.4,1929.3,7.77029]
[1617244258623,0.58089235,1929.4,1929.2,0.40712134]
[1617244259642,4.13089235,1929.4,1929.2,0.40712134]
[1617244260241,4.13089235,1929.4,1929.3,7.77038]
[1617244262670,4.13089235,1929.4,1929.2,8.17779134]
[1617244263071,2.29249235,1929.4,1929.2,0.40712134]
[1617244264901,5.84249235,1929.4,1929.3,7.77043]
[1617244265905,5.84249235,1929.4,1929.2,0.40712134]
[1617244266102,3.98399235,1929.4,1929.2,3.26712134]
[1617244266702,3.98399235,1929.4,1929.2,3.64712134]
[1617244266906,3.98399235,1929.4,1929.2,4.50762134]
[1617244267136,3.98399235,1929.4,1929.3,7.77043]
[1617244267337,3.98399235,1929.4,1929.3,13.94693]
[1617244267537,3.98399235,1929.4,1929.3,16.70693]
[1617244269140,2.14359235,1929.4,1929.3,16.70693]
[1617244269341,2.14359235,1929.4,1929.3,17.10693]
[1617244270142,5.69359235,1929.4,1929.3,16.70693]
[1617244270343,5.69359235,1929.4,1929.3,8.9365]
[1617244270543,5.69359235,1929.4,1929.2,0.40712134]
[1617244271345,5.69359235,1929.4,1929.2,8.17765134]
[1617244272147,3.84979235,1929.4,1929.2,8.17765134]
[1617244272765,3.84979235,1929.4,1929.2,0.40712134]
[1617244275197,2.01209235,1929.4,1929.2,0.40712134]
[1617244275397,5.56209235,1929.4,1929.2,0.40712134]
[1617244276597,5.56209235,1929.4,1929.2,0.12712134]
[1617244276798,5.51209235,1929.4,1929.2,0.12712134]
[1617244278823,16.69203271,1929.4,1929.2,0.12712134]
[1617244279025,19.62241701,1929.4,1929.2,0.12712134]
[1617244279222,9.21,1929.3,1929.2,0.12712134]
[1617244279821,6.21,1929.3,1929.2,0.12712134]
[1617244280026,9.21,1929.3,1929.2,0.12712134]
[1617244280244,6.21,1929.3,1929.2,0.12712134]
[1617244280653,8.56,1929.3,1929.2,0.12712134]
[1617244281445,3.55,1929.3,1929.2,0.12712134]
[1617244281645,3.55,1929.3,1929.2,0.40712134]
[1617244281846,15.25,1929.3,1929.2,0.40712134]
[1617244282044,15.25,1929.3,1929.2,0.12712134]
[1617244284091,15.25,1929.3,1929.2,1.17096829]
[1617244284292,15.64,1929.3,1929.2,0.12712134]
[1617244285791,19.19,1929.3,1929.2,0.12712134]
[1617244286191,18.8,1929.3,1929.2,0.12712134]
[1617244286393,19.84463299,1929.3,1929.2,0.12712134]
[1617244286593,18.8,1929.3,1929.2,0.12712134]
[1617244288924,19.2,1929.3,1929.2,0.12712134]
[1617244289125,18.8,1929.3,1929.2,0.12712134]
[1617244290953,22.35,1929.3,1929.2,0.12712134]
[1617244296191,25.9,1929.3,1929.2,0.12712134]
[1617244299239,26.29,1929.3,1929.2,0.12712134]
[1617244300241,24.9,1929.3,1929.2,0.12712134]
[1617244301247,26.1,1929.3,1929.2,0.12712134]
[1617244301446,29.65,1929.3,1929.2,0.12712134]
[1617244302245,29.65,1929.3,1929.2,0.36212134]
[1617244302644,29.6,1929.3,1929.2,0.36212134]
[1617244303248,35.02,1929.3,1929.2,0.36212134]
[1617244304671,35.026,1929.3,1929.2,0.36212134]
[1617244305271,34.142,1929.3,1929.2,0.36212134]
[1617244305671,29.126,1929.3,1929.2,0.36212134]
[1617244306072,28.716,1929.3,1929.2,0.36212134]
[1617244306698,32.266,1929.3,1929.2,0.36212134]
[1617244307697,31.066,1929.3,1929.2,0.36212134]
[1617244309319,30.066,1929.3,1929.2,0.36212134]
[1617244309927,30.066,1929.3,1929.2,0.64212134]
[1617244311327,30.066,1929.3,1929.2,0.36212134]
[1617244311749,18.366,1929.3,1929.2,0.36212134]
[1617244311944,21.916,1929.3,1929.2,0.36212134]
[1617244314146,20.916,1929.3,1929.2,0.36212134]
[1617244314373,20.916,1929.3,1929.2,0.64212134]
[1617244314571,19.0715,1929.3,1929.2,0.64212134]
[1617244315572,19.0715,1929.3,1929.2,0.36212134]
[1617244317198,22.6215,1929.3,1929.2,0.36212134]
[1617244317597,20.7695,1929.3,1929.2,0.36212134]
[1617244318199,20.7695,1929.3,1929.2,0.64212134]
[1617244318399,20.7695,1929.3,1929.2,1.02212134]
[1617244318599,20.7695,1929.3,1929.2,0.36212134]
[1617244319199,19.7695,1929.3,1929.2,0.36212134]
[1617244321827,19.7695,1929.3,1929.2,10.34497598]
[1617244322028,19.7695,1929.3,1929.2,11.33797598]
[1617244322250,23.3195,1929.3,1929.2,11.33797598]
[1617244322447,22.9555,1929.3,1929.2,35.02205598]
[1617244322647,11.9857,1929.7,1929.3,0.4]
[1617244322848,11.9857,1929.7,1929.6,40.81877152]
[1617244323049,11.9857,1929.7,1929.6,48.61877152]
[1617244323246,11.9857,1929.7,1929.6,56.61877152]
[1617244323446,11.9857,1929.7,1929.6,57.41537152]
[1617244323647,10.1422,1929.7,1929.6,57.41537152]
[1617244323847,10.1422,1929.7,1929.6,29.51537152]
[1617244324249,10.1422,1929.7,1929.6,37.56209152]
[1617244324250,9.1422,1929.7,1929.6,37.56209152]
[1617244324897,7.5198536,1929.7,1929.6,37.56209152]
[1617244325093,1.0,1929.9,1929.8,14.30303062]
[1617244325291,1.0,1929.9,1929.8,20.78382746]
[1617244325498,1.0,1929.9,1929.8,28.78382746]
[1617244326692,0.9,1930.4,1929.8,28.78382746]
[1617244326893,0.9,1930.4,1930.0,5.311]
[1617244327093,0.9,1930.4,1930.3,0.19468985]
[1617244327292,8.4,1930.4,1930.3,0.19468985]
[1617244327547,11.95,1930.4,1930.3,0.19468985]
[1617244328146,4.45,1930.4,1930.3,0.19468985]
[1617244328346,4.45,1930.4,1930.3,0.59468985]
[1617244329145,3.55,1930.4,1930.3,0.59468985]
[1617244329346,3.45,1930.4,1930.3,0.59468985]
[1617244329546,0.7548,1930.4,1930.3,0.59468985]
[1617244330747,0.7548,1930.4,1930.3,0.72072888]
[1617244332352,8.1548,1930.4,1930.3,0.32072888]
[1617244332551,11.7048,1930.4,1930.3,0.32072888]
[1617244333167,4.3048,1930.4,1930.3,0.32072888]
[1617244334171,3.3048,1930.4,1930.3,0.32072888]
[1617244335818,2.3048,1930.4,1930.3,0.32072888]
[1617244336218,9.4548,1930.4,1930.3,0.32072888]
[1617244337019,2.3048,1930.4,1930.3,0.32072888]
[1617244337220,8.5548,1930.4,1930.3,0.32072888]
[1617244337419,2.3048,1930.4,1930.3,0.32072888]
[1617244337821,5.8548,1930.4,1930.3,0.71072888]
[1617244338620,4.0167,1930.4,1930.3,0.71072888]
[1617244339223,3.0167,1930.4,1930.3,0.71072888]
[1617244339620,2.9167,1930.4,1930.3,0.71072888]
[1617244340020,2.9167,1930.4,1930.3,5.72072888]
[1617244341671,1.0775,1930.4,1930.3,5.72072888]
[1617244342672,1.0775,1930.4,1930.3,0.71072888]
[1617244343072,4.6275,1930.4,1930.3,0.71072888]
[1617244343889,7.1275,1930.4,1930.3,0.71072888]
[1617244344291,6.1275,1930.4,1930.3,0.71072888]
[1617244344689,4.2856,1930.4,1930.3,0.71072888]
[1617244345690,7.0356,1930.4,1930.3,5.72072888]
[1617244346295,7.0356,1930.4,1930.3,5.23072888]
[1617244347694,5.1478,1930.4,1930.3,5.23072888]
[1617244347894,5.1478,1930.4,1930.3,5.63072888]
[1617244348294,8.6978,1930.4,1930.3,5.72107352]
[1617244349319,8.5818,1930.4,1930.3,5.72107352]
[1617244349920,8.5818,1930.4,1930.3,5.0505759]
[1617244350723,6.7439,1930.4,1930.3,5.0505759]
[1617244350924,6.3,1930.4,1930.3,5.0505759]
[1617244352143,6.3,1930.4,1930.3,5.4505759]
[1617244352543,6.3,1930.4,1930.3,5.0505759]
[1617244352743,6.3,1930.4,1930.3,0.0405759]
[1617244353143,6.3,1930.4,1930.3,5.0505759]
[1617244353544,9.85,1930.4,1930.3,16.27277254]
[1617244353773,5.2614,1930.4,1930.3,21.49277254]
[1617244354170,5.2614,1930.4,1930.3,29.79356938]
[1617244354370,4.2614,1930.4,1930.3,21.49277254]
[1617244354772,4.2614,1930.4,1930.3,21.60915621]
[1617244354974,4.2614,1930.4,1930.3,29.90995305]
[1617244355977,4.208295,1930.4,1930.3,29.90995305]
[1617244356802,2.362295,1930.4,1930.3,29.90995305]
[1617244357005,2.362295,1930.4,1930.3,21.60915621]
[1617244357401,2.362295,1930.4,1930.3,31.10995305]
[1617244357803,2.362295,1930.4,1930.3,29.90995305]
[1617244358203,2.362295,1930.4,1930.3,18.15295957]
[1617244358602,5.112295,1930.4,1930.3,18.15295957]
[1617244358805,8.662295,1930.4,1930.3,18.15295957]
[1617244359218,7.662295,1930.4,1930.3,18.15295957]
[1617244359618,7.662295,1930.4,1930.3,10.38695957]
[1617244359817,5.811795,1930.4,1930.3,10.77695957]
[1617244360018,5.811795,1930.4,1930.3,8.60129637]
[1617244360618,3.55,1930.4,1930.3,8.60129637]
[1617244360819,3.55,1930.4,1930.3,19.06744637]
[1617244361219,3.55,1930.4,1930.3,18.67744637]
[1617244361846,3.55,1930.4,1930.3,10.62310957]
[1617244362646,6.3,1930.4,1930.3,11.02310957]
[1617244362846,4.461,1930.4,1930.3,13.66744637]
[1617244363446,4.461,1930.4,1930.3,18.62310957]
[1617244363646,4.461,1930.4,1930.3,10.62310957]
[1617244364045,8.011,1930.4,1930.3,10.62310957]
[1617244364276,7.011,1930.4,1930.3,10.62310957]
[1617244364873,7.011,1930.4,1930.3,24.70080957]
[1617244365775,5.1719,1930.4,1930.3,8.93465957]
[1617244365974,5.1719,1930.4,1930.3,2.85695957]
[1617244366780,5.1719,1930.4,1930.3,3.13695957]
[1617244366994,5.1719,1930.4,1930.3,6.55727097]
[1617244367194,5.1719,1930.4,1930.3,3.13695957]
[1617244367395,5.1719,1930.4,1930.3,8.14695957]
[1617244367597,3.55,1930.4,1930.3,16.14695957]
[1617244367998,3.55,1930.4,1930.3,15.91321957]
[1617244368399,3.55,1930.4,1930.3,23.91321957]
[1617244368799,1.7119,1930.4,1930.3,15.91321957]
[1617244369202,5.2619,1930.4,1930.3,15.91321957]
[1617244369404,4.2619,1930.4,1930.3,15.91321957]
[1617244370419,4.2619,1930.4,1930.3,7.86695957]
[1617244370626,7.0119,1930.4,1930.3,7.86695957]
[1617244370821,7.0119,1930.4,1930.3,5.16695957]
[1617244371224,7.0119,1930.4,1930.3,0.15695957]
[1617244371821,5.1743,1930.4,1930.3,5.16695957]
[1617244374252,4.1743,1930.4,1930.3,5.16695957]
[1617244374452,7.7243,1930.4,1930.3,5.16695957]
[1617244374870,5.8803,1930.4,1930.3,5.31537958]
[1617244376272,5.8803,1930.4,1930.3,5.27480368]
[1617244377275,5.8803,1930.4,1930.3,0.26480368]
[1617244377695,5.8803,1930.4,1930.3,5.27480368]
[1617244377897,4.0372,1930.4,1930.3,5.27480368]
[1617244378299,4.0372,1930.4,1930.3,8.03104368]
[1617244378500,4.0372,1930.4,1930.3,8.42104368]
[1617244378698,3.55,1930.4,1930.3,13.43104368]
[1617244378899,3.55,1930.4,1930.3,16.21104368]
[1617244379099,3.55,1930.4,1930.3,24.21104368]
[1617244379299,2.55,1930.4,1930.3,24.21104368]
[1617244379902,6.1,1930.4,1930.3,24.21104368]
[1617244380320,6.1,1930.4,1930.3,23.82104368]
[1617244380921,4.25,1930.4,1930.3,23.82104368]
[1617244381121,4.25,1930.4,1930.3,22.29027912]
[1617244381923,4.25,1930.4,1930.3,22.69027912]
[1617244382747,4.25,1930.4,1930.3,30.58777912]
[1617244383948,2.4098,1930.4,1930.3,30.99777912]
[1617244384348,1.4098,1930.4,1930.3,30.99777912]
[1617244385150,4.9598,1930.4,1930.3,30.99777912]
[1617244386973,3.1191,1930.4,1930.3,30.99777912]
[1617244388817,3.1191,1930.4,1930.3,39.29857596]
[1617244389421,2.1191,1930.4,1930.3,42.19777912]
[1617244389620,2.1191,1930.4,1930.3,45.19777912]
[1617244389621,3.14871516,1930.4,1930.3,45.19777912]
[1617244389823,3.14871516,1930.4,1930.3,50.78557596]